bitfinex/quotes_ETHUSD_20250616
["timestamp","ask_amount","ask_price","bid_price","bid_amount"]
[1750043780753,0.0308665,2573.6,2573.2,0.1936]
[1750043783684,0.799,2573.5,2573.2,0.1936]
[1750043784054,0.0308665,2573.4,2572.7,4.63879159]
[1750043784273,0.2244665,2573.4,2573.0,0.1936]
[1750043790564,0.8298665,2573.5,2573.0,0.03886295]
[1750043790890,0.8298665,2573.5,2573.1,0.1936]
[1750043791571,0.0308665,2573.4,2573.1,0.1936]
[1750043794685,0.799,2573.5,2573.1,0.1936]
[1750043794901,0.0308665,2573.4,2573.1,0.1936]
[1750043798406,0.799,2573.5,2573.1,0.1936]
[1750043798552,0.2244665,2573.6,2573.2,3.88619782]
[1750043798748,0.8323,2573.7,2573.3,0.1936]
[1750043798995,0.8631665,2573.7,2573.3,0.1936]
[1750043800095,0.8323,2573.7,2573.3,0.1936]
[1750043802661,0.0308665,2573.6,2573.3,0.1936]
[1750043805870,4.98395652,2573.8,2573.3,4.8395071]
[1750043805871,0.2244665,2573.8,2573.3,4.8395071]
[1750043806075,5.722448,2574.2,2573.3,4.8395071]
[1750043806076,0.7921,2574.2,2573.5,3.88571973]
[1750043806380,0.7921,2574.2,2573.3,15.82126108]
[1750043806381,0.0308665,2574.1,2573.7,0.1936]
[1750043808508,0.0308665,2574.1,2573.4,6.385]
[1750043808509,0.7921,2574.0,2573.4,6.385]
[1750043808727,0.7921,2574.0,2573.5,0.1936]
[1750043808728,0.0308665,2573.9,2573.5,0.1936]
[1750043809505,0.9857,2574.0,2573.5,0.1936]
[1750043809701,0.0308665,2574.1,2573.5,3.88567829]
[1750043809896,0.0308665,2574.1,2573.8,0.1936]
[1750043810819,1.87039142,2574.1,2573.8,0.1936]
[1750043811020,0.1936,2574.0,2573.5,0.1936]
[1750043811220,0.8029,2573.9,2573.5,0.1936]
[1750043811432,0.0308665,2573.8,2573.5,0.1936]
[1750043819856,0.8337665,2573.9,2573.5,0.1936]
[1750043820616,1.8904665,2574.0,2573.5,0.9919]
[1750043820954,10.0,2574.3,2573.5,0.7983]
[1750043821247,0.2244665,2574.2,2573.8,0.1936]
[1750043822652,4.79035652,2574.0,2573.5,7.1813]
[1750043822855,4.79035652,2573.8,2573.5,6.383]
[1750043823154,0.0308665,2573.7,2573.5,6.383]
[1750043823471,0.0308665,2573.8,2573.5,6.383]
[1750043826664,0.0308665,2573.9,2573.6,0.7673]
[1750043826870,0.2244665,2574.0,2573.6,0.9609]
[1750043827279,0.1936,2574.0,2573.6,4.84638015]
[1750043827437,0.1936,2574.2,2573.8,0.1936]
[1750043828986,0.1936,2574.2,2573.9,0.7591]
[1750043829142,0.2244665,2574.2,2573.9,0.7591]
[1750043830044,0.2244665,2574.2,2573.8,0.1936]
[1750043830255,0.1936,2574.2,2573.8,0.1936]
[1750043833484,1.666,2574.4,2574.0,0.1936]
[1750043834358,0.0308665,2574.3,2574.0,0.1936]
[1750043834766,4.79035652,2574.2,2573.7,0.8065]
[1750043835080,4.79035652,2574.0,2573.5,0.806]
[1750043835399,0.0308665,2573.9,2573.5,0.1936]
[1750043836706,5.59955652,2573.8,2573.3,7.187]
[1750043836864,5.59955652,2573.8,2573.4,0.1936]
[1750043836865,0.0308665,2573.7,2573.4,0.1936]
[1750043839268,4.79035652,2573.6,2572.9,1.666]
[1750043839495,4.79035652,2573.4,2573.0,0.1936]
[1750043839802,0.0308665,2573.3,2573.0,0.1936]
[1750043840394,0.0308665,2573.3,2572.8,0.7777]
[1750043840595,0.2244665,2573.3,2572.9,0.1936]
[1750043843923,0.1936,2573.3,2572.9,0.1936]
[1750043844725,0.0308665,2573.4,2572.8,0.7777]
[1750043844919,0.2244665,2573.4,2572.9,0.1936]
[1750043845294,0.1936,2573.4,2572.9,0.23246406]
[1750043846642,0.1936,2573.4,2572.9,0.1936]
[1750043846937,0.0308665,2573.3,2572.9,0.1936]
[1750043847296,0.1936,2573.4,2572.9,0.1936]
[1750043847490,0.2244665,2573.4,2572.9,0.23246255]
[1750043848333,0.2244665,2573.4,2572.9,0.1936]
[1750043848843,1.664,2573.6,2573.1,0.7841]
[1750043849008,1.664,2573.6,2573.3,0.1936]
[1750043850142,0.2244665,2573.5,2573.1,0.1936]
[1750043851838,5.60285652,2573.4,2573.1,0.1936]
[1750043852036,0.0308665,2573.3,2573.1,0.1936]
[1750043853805,4.79035652,2573.2,2572.5,0.8264]
[1750043854123,0.8125,2573.0,2572.7,0.1936]
[1750043855364,0.0308665,2573.1,2572.7,0.1936]
[1750043855567,0.0308665,2573.3,2572.7,3.88688852]
[1750043855862,0.2244665,2573.3,2572.9,0.1936]
[1750043856366,0.0308665,2573.3,2572.5,14.71362461]
[1750043856573,0.1936,2573.2,2572.7,0.1936]
[1750043860377,4.79035652,2573.0,2572.4,10.0]
[1750043860547,0.0308665,2572.9,2572.3,7.2069]
[1750043861487,0.0308665,2573.0,2572.3,7.2069]
[1750043861677,0.0308665,2573.0,2572.3,0.8269]
[1750043861863,0.7794,2572.9,2572.1,4.70084141]
[1750043862069,0.0308665,2572.8,2572.3,6.38]
[1750043863963,0.0308665,2572.8,2572.4,0.813]
[1750043864582,0.0308665,2572.8,2572.3,6.38]
[1750043865855,0.8102665,2572.9,2572.3,6.38]
[1750043866183,0.0308665,2573.0,2572.7,4.79035652]
[1750043866384,0.0308665,2573.7,2572.9,4.79035652]
[1750043866581,0.0308665,2573.7,2573.0,3.92526051]
[1750043866746,0.0308665,2573.7,2572.9,10.55]
[1750043867153,0.0308665,2573.7,2573.0,3.88643181]
[1750043867552,0.0308665,2573.7,2572.9,14.43659287]
[1750043867787,0.0308665,2573.7,2573.0,3.88651353]
[1750043868769,0.0308665,2573.7,2572.9,14.43663466]
[1750043868970,0.7794,2573.8,2573.1,4.79035652]
[1750043869172,1.664,2574.0,2572.9,10.55]
[1750043869173,2.5030665,2574.0,2573.3,9.22634449]
[1750043869370,2.4722,2574.0,2573.4,10.2659027]
[1750043869788,0.8082,2574.0,2573.4,10.2659027]
[1750043870106,0.8082,2574.0,2573.4,6.38]
[1750043870263,0.8082,2574.0,2573.4,10.26589421]
[1750043870462,0.8082,2574.0,2573.6,0.1936]
[1750043874817,0.0308665,2573.9,2573.6,0.1936]
[1750043878098,0.8082,2574.0,2573.6,0.1936]
[1750043879433,0.2244665,2574.1,2573.6,0.9959]
[1750043880131,0.8183,2574.2,2573.8,0.1936]
[1750043880339,0.8491665,2574.2,2573.8,0.1936]
[1750043881337,0.8183,2574.2,2573.8,0.1936]
[1750043881949,0.2244665,2574.3,2573.8,0.1936]
[1750043885615,0.2244665,2574.3,2573.8,4.07890109]
[1750043886539,0.2244665,2574.3,2573.8,0.1936]
[1750043887152,0.1936,2574.3,2573.9,3.92398031]
[1750043887441,0.8321,2574.4,2574.2,0.1936]
[1750043891952,0.2244665,2574.6,2574.2,0.1936]
[1750043892118,0.7756,2574.7,2574.3,0.1936]
[1750043893043,1.8556,2574.8,2574.3,0.1936]
[1750043893276,0.7756,2575.1,2574.4,8.71093137]
[1750043893451,0.7756,2575.1,2574.8,0.1936]
[1750043894976,0.7799,2575.5,2574.9,0.7842]
[1750043895266,1.662,2576.0,2575.0,10.29622005]
[1750043895470,0.0308665,2575.9,2575.0,10.2573909]
[1750043895783,0.7799,2575.8,2575.1,0.03882915]
[1750043896070,0.7799,2575.8,2575.1,3.92213843]
[1750043896235,0.7799,2575.8,2575.2,0.55]
[1750043896563,0.8107665,2575.8,2575.2,0.55]
[1750043896729,0.8107665,2575.8,2575.0,10.25746604]
[1750043896935,0.8107665,2575.8,2575.1,0.55]
[1750043897234,0.8107665,2575.8,2575.2,3.88317862]
[1750043898166,0.8107665,2575.8,2575.1,4.4332733]
[1750043898845,0.8107665,2575.8,2575.1,0.55]
[1750043900188,0.8107665,2575.8,2575.0,6.374]
[1750043900889,0.8107665,2575.8,2575.0,10.25749051]
[1750043901316,0.8107665,2575.8,2575.0,6.374]
[1750043901515,0.8107665,2575.8,2575.0,10.25747681]
[1750043901713,0.8107665,2575.8,2575.0,6.374]
[1750043902711,0.8107665,2575.8,2574.9,0.7842]
[1750043902914,4.78775595,2575.7,2575.1,6.372]
[1750043903219,0.8449665,2575.6,2575.1,6.372]
[1750043905038,0.8449665,2575.6,2575.2,0.1936]
[1750043908232,4.98135595,2575.7,2575.2,4.98135595]
[1750043908233,0.1936,2575.7,2575.2,4.98135595]
[1750043908436,0.7731,2575.8,2575.3,0.7946292]
[1750043908610,0.7731,2575.8,2575.6,0.1936]
[1750043914316,4.78775595,2575.7,2574.1,0.38293666]
[1750043914518,4.78775595,2575.4,2575.1,0.1936]
[1750043914729,0.7820665,2575.3,2575.1,0.1936]
[1750043915940,0.7820665,2575.3,2574.5,4.65095831]
[1750043916140,0.9756665,2575.3,2574.8,0.1936]
[1750043918112,4.78775595,2575.2,2574.8,0.1936]
[1750043918311,0.0308665,2575.1,2574.8,0.1936]
[1750043919119,0.7692,2574.9,2574.8,0.1936]
[1750043919327,0.8000665,2574.9,2574.6,0.1936]
[1750043923658,0.8000665,2574.9,2574.0,0.55]
[1750043923659,4.78775595,2574.8,2574.0,0.55]
[1750043923955,1.0256665,2574.7,2574.3,0.1936]
[1750043924579,0.9948,2574.7,2574.3,0.1936]
[1750043931174,0.0308665,2574.6,2574.3,0.1936]
[1750043931964,0.7913,2574.5,2574.0,6.369]
[1750043932165,0.7913,2574.5,2574.1,0.1936]
[1750043932463,0.0308665,2574.4,2574.1,0.1936]
[1750043932667,4.81862245,2574.4,2573.7,0.7942]
[1750043932830,0.9849,2574.3,2573.8,0.1936]
[1750043933029,0.0308665,2574.2,2573.8,0.1936]
[1750043934065,4.78775595,2574.0,2573.3,0.7942]
[1750043934268,0.7913,2573.8,2573.1,0.7942]
[1750043934432,0.0308665,2573.7,2573.4,0.1936]
[1750043935746,5.59875595,2573.6,2572.6,0.7956]
[1750043935952,1.0279665,2573.5,2573.0,0.1936]
[1750043936146,1.41593875,2573.5,2572.6,0.7956]
[1750043936362,0.1936,2573.3,2572.8,0.1936]
[1750043939614,0.8285,2573.2,2572.8,0.1936]
[1750043939746,0.8285,2573.2,2572.5,11.658]
[1750043939747,0.0308665,2573.1,2572.5,1.658]
[1750043940071,0.8285,2572.8,2572.1,0.7966]
[1750043940233,0.2244665,2572.7,2572.3,0.1936]
[1750043940776,0.1936,2572.7,2572.3,0.1936]
[1750043941472,0.0308665,2573.1,2572.7,3.88696699]
[1750043941650,0.7801,2573.4,2572.8,0.03886776]
[1750043941856,0.9737,2573.4,2573.0,0.1936]
[1750043942377,0.0308665,2573.3,2573.0,0.1936]
[1750043942575,0.7722,2573.2,2572.6,6.371]
[1750043942759,0.0308665,2573.1,2572.7,0.1936]
[1750043944333,0.9658,2573.2,2572.7,4.11936402]
[1750043944803,0.9658,2573.2,2572.7,0.1936]
[1750043946503,0.7722,2573.2,2572.8,0.0388655]
[1750043946801,0.7722,2573.2,2572.9,0.1936]
[1750043947782,0.8229,2573.0,2572.1,0.8104]
[1750043947973,0.8229,2572.7,2572.3,0.1936]
[1750043948574,0.8026,2572.9,2572.4,0.03887215]
[1750043948770,0.8026,2572.9,2572.6,0.1936]
[1750043949673,0.0308665,2572.8,2572.1,0.8104]
[1750043949874,0.2244665,2572.8,2572.4,0.1936]
[1750043950907,0.1936,2572.8,2572.4,0.1936]
[1750043956999,0.0308665,2572.7,2572.4,0.1936]
[1750043957426,0.1936,2572.8,2572.4,0.1936]
[1750043958327,0.8026,2572.9,2572.6,0.1936]
[1750043959334,0.0308665,2572.8,2572.3,6.372]
[1750043959505,0.0308665,2572.8,2572.4,0.1936]
[1750043960338,0.9962,2572.9,2572.4,0.1936]
[1750043962048,0.0308665,2572.8,2572.4,0.1936]
[1750043964742,0.9962,2572.9,2572.4,0.1936]
[1750043965078,0.0308665,2572.8,2572.4,0.1936]
[1750043965273,0.8586665,2573.1,2572.7,0.1936]
[1750043966473,10.92997388,2573.3,2572.5,0.8043]
[1750043966474,0.8278,2573.3,2572.6,0.55]
[1750043966675,0.8278,2573.3,2572.9,0.1936]
[1750043970294,0.2244665,2573.4,2572.9,0.1936]
[1750043970494,1.658,2573.6,2572.8,4.67031209]
[1750043970495,0.0308665,2573.5,2572.8,4.67031209]
[1750043970795,0.2244665,2573.5,2573.1,0.1936]
[1750043970960,0.5834802,2573.5,2573.1,0.1936]
[1750043975890,7.18740053,2573.4,2572.5,6.371]
[1750043976094,1.0072,2573.2,2572.7,0.1936]
[1750043976417,0.0308665,2573.1,2572.7,0.1936]
[1750043977031,0.0308665,2573.1,2572.4,7.1358]
[1750043977323,0.1936,2573.0,2572.5,0.1936]
[1750043977935,0.8600665,2572.9,2572.5,0.1936]
[1750043978302,1.6841732,2572.9,2572.5,0.1936]
[1750043980583,0.8600665,2572.9,2572.5,0.1936]
[1750043981498,0.8600665,2572.9,2572.1,1.658]
[1750043981700,0.1936,2572.7,2572.2,0.23247402]
[1750043981886,0.1936,2572.7,2572.3,0.796]
[1750043982421,0.8600665,2572.9,2572.5,0.1936]
[1750043984949,0.2244665,2573.0,2572.5,0.1936]
[1750043986066,0.49353315,2573.0,2572.5,0.1936]
[1750043986214,0.1936,2572.8,2572.3,0.9896]
[1750043987458,0.0308665,2573.0,2572.4,0.03887207]
[1750043987757,0.2244665,2573.0,2572.5,0.1936]
[1750043987929,0.1936,2573.0,2572.5,0.1936]
[1750043988137,1.658,2573.2,2572.6,0.82536814]
[1750043988461,10.3590137,2573.5,2572.9,0.1936]
[1750043988462,1.8516,2573.5,2572.9,0.1936]
[1750043988664,1.8516,2573.5,2573.0,0.03886103]
[1750043988835,1.8516,2573.5,2572.9,0.1936]
[1750043989169,1.8824665,2573.5,2572.9,0.1936]
[1750043990064,1.8516,2573.5,2573.0,0.03886104]
[1750043991271,1.8516,2573.5,2572.9,0.1936]
[1750043991577,1.8516,2573.5,2573.0,0.03886102]
[1750043992933,1.8516,2573.5,2572.9,0.1936]
[1750043993368,0.0308665,2573.4,2572.9,0.1936]
[1750043994479,0.0308665,2573.4,2572.9,6.5636]
[1750043996775,0.7873,2573.3,2572.9,0.1936]
[1750043996973,0.7873,2573.3,2572.7,0.1936]
[1750043996974,0.2244665,2573.2,2572.7,0.1936]
[1750043998260,0.8181665,2573.3,2572.6,7.19706681]
[1750043998457,0.7873,2573.5,2572.9,0.7892]
[1750043998786,0.9809,2573.5,2573.1,0.1936]
[1750043999185,0.0308665,2573.4,2573.1,0.1936]
[1750043999484,0.1936,2573.3,2572.9,0.9828]
[1750044000302,0.1936,2573.3,2572.9,0.1936]
[1750044001871,0.2244665,2573.2,2572.7,7.3518]
[1750044003571,0.1936,2573.2,2572.7,7.3518]
[1750044005275,0.0308665,2573.4,2572.8,0.03886598]
[1750044005479,0.2244665,2573.4,2572.9,0.1936]
[1750044006430,0.49134315,2573.4,2572.9,0.1936]
[1750044008943,0.8322,2573.3,2572.3,1.657]
[1750044009218,0.2244665,2573.2,2572.7,0.1936]
[1750044009515,0.1936,2573.0,2572.5,6.5616]
[1750044009698,0.0308665,2572.9,2572.5,6.5616]
[1750044012508,0.7938,2572.8,2572.5,0.1936]
[1750044012876,4.7950932,2572.6,2571.8,0.7934]
[1750044013185,0.0308665,2572.7,2572.2,0.1936]
[1750044013186,0.1936,2572.7,2572.2,0.1936]
[1750044013375,0.0308665,2572.6,2572.2,0.1936]
[1750044013997,4.7950932,2573.0,2572.2,0.1936]
[1750044013998,0.0308665,2572.9,2572.3,0.03887429]
[1750044014320,0.2244665,2572.9,2572.4,0.1936]
[1750044014673,0.8325,2572.8,2572.4,0.1936]
[1750044014876,0.0308665,2572.7,2572.2,6.368]
[1750044015077,0.0308665,2572.7,2572.3,0.1936]
[1750044016711,0.7561,2572.6,2572.3,0.1936]
[1750044017701,0.0308665,2572.5,2572.2,6.5616]
[1750044017998,0.9497,2572.6,2572.2,6.5616]
[1750044019689,0.0308665,2572.5,2572.2,0.1936]
[1750044022409,0.7904,2572.3,2572.0,6.368]
[1750044022613,0.8212665,2572.3,2572.0,6.368]
[1750044023344,0.8212665,2572.3,2571.9,0.1944]
[1750044025811,4.7950932,2572.2,2571.6,6.368]
[1750044026150,0.0308665,2572.1,2571.8,0.1944]
[1750044027124,5.5679932,2572.0,2571.3,0.816]
[1750044027323,4.7950932,2571.6,2570.9,2.472]
[1750044027634,0.9673,2571.4,2570.9,0.1944]
[1750044027836,0.0308665,2571.3,2570.9,0.1944]
[1750044028035,4.7950932,2571.2,2570.6,6.369]
[1750044028221,0.8037665,2571.1,2570.8,0.1944]
[1750044034346,4.7950932,2571.0,2570.2,1.3677]
[1750044034663,0.0308665,2570.9,2570.2,7.1877]
[1750044034866,0.0308665,2570.9,2570.2,0.8177]
[1750044035022,0.1944,2570.8,2570.3,0.1944]
[1750044035223,0.1944,2570.8,2570.3,6.5654]
[1750044036867,0.7637,2570.7,2570.3,0.1944]
[1750044037023,0.0308665,2570.6,2570.3,0.1944]
[1750044038427,0.0308665,2570.6,2570.1,0.1944]
[1750044038628,0.2252665,2570.6,2570.1,0.1944]
[1750044038824,0.80367247,2570.6,2570.1,0.1944]
[1750044039836,5.59876567,2570.6,2570.1,0.1944]
[1750044040063,5.59876567,2570.6,2569.5,5.17625553]
[1750044040064,0.8283,2570.2,2569.5,3.89180774]
[1750044040280,0.8591665,2570.2,2569.8,0.1944]
[1750044041379,0.8283,2570.2,2569.8,0.1944]
[1750044045202,0.0308665,2570.1,2569.8,0.1944]
[1750044048162,0.2252665,2570.3,2569.8,0.9844]
[1750044048366,0.8217,2570.8,2570.2,5.5850932]
[1750044048674,0.2252665,2570.7,2570.2,0.9844]
[1750044048867,0.2252665,2570.7,2570.2,0.1944]
[1750044049260,0.80947247,2570.7,2570.2,0.1944]
[1750044049571,5.60456567,2570.7,2570.2,0.1944]
[1750044050397,0.80947247,2570.7,2570.2,0.1944]
[1750044050605,5.6273932,2570.6,2569.8,0.7631]
[1750044050760,1.0267,2570.3,2569.9,0.1944]
[1750044050965,0.0308665,2570.2,2569.9,0.1944]
[1750044051799,4.8259597,2570.2,2569.9,0.1944]
[1750044052394,4.8259597,2570.2,2569.4,11.07898688]
[1750044052595,5.0203597,2570.2,2569.7,0.1944]
[1750044052914,5.77142567,2570.2,2569.7,0.1944]
[1750044054066,0.2252665,2570.2,2569.8,0.7526]
[1750044054335,1.8832665,2570.6,2570.1,0.1944]
[1750044056416,1.8832665,2570.6,2570.2,0.776]
[1750044057071,1.6888665,2570.6,2570.2,0.776]
[1750044057404,1.658,2570.6,2570.3,0.1944]
[1750044057828,0.784,2571.1,2570.4,4.8339966]
[1750044057974,0.2252665,2571.0,2570.5,6.5664]
[1750044059093,0.7922,2570.9,2570.3,6.372]
[1750044059297,0.2252665,2570.8,2570.3,6.5664]
[1750044061415,0.2252665,2570.8,2570.3,0.1944]
[1750044063320,0.0308665,2571.2,2570.5,0.7658]
[1750044063497,0.2252665,2571.2,2570.7,0.1944]
[1750044064183,1.61642315,2571.2,2570.7,0.1944]
[1750044064526,1.42202315,2571.2,2570.5,0.7658]
[1750044064690,0.1944,2571.0,2570.5,0.9602]
[1750044066143,0.8009,2570.9,2570.5,0.1944]
[1750044066340,0.8009,2570.9,2570.2,3.89067257]
[1750044066341,0.0308665,2570.8,2570.2,6.371]
[1750044066643,0.0308665,2570.8,2570.3,0.1944]
[1750044066644,0.2252665,2570.8,2570.3,0.1944]
[1750044066814,2.7039994,2570.8,2570.3,0.1944]
[1750044069449,0.1944,2570.6,2570.1,0.955]
[1750044070261,0.8115,2570.5,2570.1,0.1944]
[1750044070558,0.0308665,2570.4,2570.1,0.1944]
[1750044070753,0.0308665,2570.4,2569.9,0.7643]
[1750044070932,0.2252665,2570.4,2570.0,0.1944]
[1750044071132,0.1944,2570.4,2570.0,0.1944]
[1750044072353,0.0308665,2570.3,2570.0,0.1944]
[1750044073426,0.2252665,2570.4,2570.0,0.1944]
[1750044081095,0.1944,2570.4,2570.0,0.1944]
[1750044081292,2.4685,2570.5,2570.1,0.1944]
[1750044084583,1.657,2570.5,2570.1,0.9524]
[1750044084763,1.657,2570.5,2570.1,0.99130446]
[1750044085384,0.1944,2570.6,2570.1,0.99130446]
[1750044085799,0.1944,2570.6,2570.1,0.9524]
[1750044090305,3.41781116,2570.9,2570.2,4.84231683]
[1750044090504,0.2252665,2570.8,2570.4,0.1944]
[1750044092933,0.2252665,2570.8,2570.0,4.80341235]
[1750044092934,0.7939,2570.7,2569.9,0.7818]
[1750044093136,0.0308665,2570.6,2570.0,0.03890514]
[1750044093434,0.2252665,2570.6,2570.1,0.1944]
[1750044095951,0.8285,2570.5,2570.1,0.1944]
[1750044096147,0.0308665,2570.4,2570.1,0.1944]
[1750044096942,0.8285,2570.5,2570.1,0.1944]
[1750044097453,0.0308665,2570.4,2570.1,0.1944]
[1750044097661,4.83427885,2570.4,2570.1,0.1944]
[1750044097955,1.55387789,2570.3,2569.8,0.1944]
[1750044098272,0.92943243,2570.7,2569.9,5.66512211]
[1750044098551,0.1944,2570.6,2570.1,8.88867026]
[1750044098727,0.7743,2570.9,2570.4,3.89042766]
[1750044098929,1.8812665,2571.0,2570.5,0.2332982]
[1750044099132,1.8504,2571.0,2570.5,0.1944]
[1750044100833,1.8504,2571.0,2570.5,4.12358314]
[1750044101029,0.92943243,2571.3,2570.5,4.12358314]
[1750044101030,0.7669,2571.3,2570.7,8.69333831]
[1750044101221,0.7669,2571.3,2570.9,0.1944]
[1750044104736,0.7669,2571.3,2570.9,4.08407481]
[1750044104929,0.7669,2571.3,2570.9,0.23329203]
[1750044105129,0.7669,2571.3,2570.9,4.08407817]
[1750044105459,1.0060665,2571.5,2570.9,4.1229702]
[1750044105656,1.0060665,2571.5,2570.9,4.08407817]
[1750044105848,1.0060665,2571.5,2570.9,0.1944]
[1750044106154,1.0060665,2571.5,2570.9,4.08402781]
[1750044106576,1.0060665,2571.5,2570.9,0.1944]
[1750044106862,1.0060665,2571.5,2570.9,4.08407786]
[1750044106863,1.75261439,2571.5,2570.9,4.08407786]
[1750044107049,1.0060665,2571.5,2570.9,4.08407786]
[1750044108565,1.0060665,2571.5,2571.0,3.88948833]
[1750044108969,10.0,2571.9,2571.0,3.88948833]
[1750044108970,0.8116665,2571.7,2571.1,3.92819185]
[1750044109152,1.0060665,2571.7,2571.2,0.1944]
[1750044110161,1.0060665,2571.7,2571.2,4.08361031]
[1750044110540,1.0060665,2571.7,2571.2,0.1944]
[1750044110931,0.9752,2571.7,2571.2,0.1944]
[1750044111138,0.7808,2571.7,2571.3,0.1944]
[1750044111332,0.7808,2571.7,2571.3,4.08345639]
[1750044111533,0.7808,2571.7,2571.3,10.45145639]
[1750044112234,0.7808,2571.7,2571.3,10.25705639]
[1750044112436,0.7808,2571.7,2571.5,0.1944]
[1750044114066,0.8155,2571.9,2571.5,0.1944]
[1750044114367,0.8155,2571.9,2571.5,4.08318074]
[1750044114555,0.2252665,2572.0,2571.5,0.1944]
[1750044114756,3.85972535,2573.9,2571.4,0.84698443]
[1750044114757,0.8463665,2572.3,2571.6,4.84229674]
[1750044114959,0.1936,2572.2,2571.7,4.08276274]
[1750044115135,0.1936,2572.2,2571.8,7.1751]
[1750044115536,0.1936,2572.2,2571.8,6.367]
[1750044115734,0.1936,2572.2,2571.9,6.367]
[1750044118544,0.1936,2572.2,2571.7,0.1944]
[1750044118749,0.1936,2572.2,2571.8,6.367]
[1750044119146,0.1936,2572.2,2571.7,10.44887035]
[1750044119547,0.1936,2572.2,2571.8,3.8883113]
[1750044120374,0.1936,2572.2,2571.8,0.7795]
[1750044120672,0.8155,2572.3,2572.0,0.1936]
[1750044120977,0.9488,2572.5,2572.0,0.1936]
[1750044121176,0.9796665,2572.5,2572.0,4.08158988]
[1750044121640,0.9488,2572.5,2572.0,0.1936]
[1750044121839,0.7664,2572.7,2572.2,3.88772123]
[1750044122043,0.7664,2572.7,2572.3,0.8287]
[1750044122358,0.7664,2572.7,2572.4,0.1936]
[1750044129182,0.7848,2572.9,2572.4,4.80341235]
[1750044129385,0.7848,2573.1,2572.6,0.1936]
[1750044129547,0.7848,2573.1,2572.7,6.364]
[1750044134060,0.7848,2573.1,2572.8,0.1936]
[1750044135488,7.89,2574.0,2573.0,4.80341235]
[1750044135655,1.653,2573.7,2573.0,4.80341235]
[1750044135865,0.0308665,2573.6,2573.0,8.68990711]
[1750044136061,0.8136,2573.8,2573.1,4.67670621]
[1750044136255,0.8136,2573.8,2573.2,0.55]
[1750044136956,0.8136,2573.8,2573.2,4.43618918]
[1750044137155,0.8136,2573.8,2573.2,10.79818918]
[1750044137569,0.8136,2573.8,2573.2,6.912]
[1750044138090,0.8136,2573.8,2573.2,15.60154873]
[1750044138451,0.8136,2573.8,2573.3,3.88604316]
[1750044138872,0.8136,2573.8,2573.2,11.71541235]
[1750044139077,0.8136,2573.8,2573.3,3.88604715]
[1750044139870,0.8136,2573.8,2573.2,15.6015444]
[1750044141281,0.8136,2573.8,2573.3,3.88597707]
[1750044141458,0.8136,2573.8,2573.4,0.03885228]
[1750044141910,0.7612,2574.1,2573.4,0.03885228]
[1750044142069,0.0308665,2574.0,2573.3,3.88597707]
[1750044142707,0.0308665,2574.0,2573.2,15.60154983]
[1750044142874,0.7612,2574.1,2573.4,8.68917263]
[1750044143076,0.7612,2574.1,2573.6,4.80341235]
[1750044143398,0.7612,2574.1,2573.7,6.39984933]
[1750044144193,0.7612,2574.1,2573.7,6.361]
[1750044144387,0.7612,2574.1,2573.7,6.39984933]
[1750044145115,0.7612,2574.1,2573.7,6.361]
[1750044145521,0.7612,2574.1,2573.8,0.1936]
[1750044147842,5.57271235,2573.9,2573.0,0.7803]
[1750044147983,0.7693,2573.5,2572.8,9.6417578]
[1750044148323,0.8001665,2573.5,2572.9,6.36]
[1750044149127,0.7693,2573.5,2572.9,6.36]
[1750044150894,0.7693,2573.5,2572.9,10.24665029]
[1750044152406,0.7693,2573.5,2573.0,0.03886022]
[1750044152610,0.7693,2573.5,2572.9,10.24665029]
[1750044153012,0.7693,2573.5,2572.9,6.36]
[1750044153836,0.7693,2573.5,2572.9,10.24664011]
[1750044154135,0.7693,2573.5,2572.9,6.36]
[1750044156039,0.0308665,2573.4,2572.9,6.36]
[1750044156601,0.7874,2573.3,2572.8,4.97468698]
[1750044156824,0.7874,2573.3,2572.8,11.33368698]
[1750044157934,0.981,2573.3,2572.9,0.1936]
[1750044159335,0.0308665,2573.2,2572.9,0.1936]
[1750044160529,0.981,2573.3,2572.9,0.1936]
[1750044161644,0.0308665,2573.2,2572.9,0.1936]
[1750044161830,0.981,2573.3,2572.9,0.1936]
[1750044162037,0.0308665,2573.2,2572.9,0.1936]
[1750044162235,0.981,2573.3,2572.9,0.1936]
[1750044163618,0.981,2573.3,2572.9,4.08018344]
[1750044163823,2.4145,2573.5,2573.1,0.1936]
[1750044164040,2.67839665,2573.5,2573.1,0.1936]
[1750044166013,0.7796,2573.3,2573.1,0.1936]
[1750044166217,4.83427885,2573.2,2572.9,0.1936]
[1750044166418,0.7796,2573.1,2572.9,0.1936]
[1750044166711,0.0308665,2573.0,2572.8,4.97468698]
[1750044166943,0.7796,2572.9,2572.8,4.97468698]
[1750044171716,2.4316,2572.9,2572.8,4.97468698]
[1750044171917,0.964,2572.8,2572.4,0.1936]
[1750044172112,0.0308665,2572.7,2572.4,0.1936]
[1750044173449,0.964,2572.8,2572.4,0.1936]
[1750044173651,0.7704,2572.8,2572.3,3.88757012]
[1750044173827,0.7704,2572.8,2572.5,0.1936]
[1750044174846,0.8012665,2572.8,2572.1,10.0]
[1750044175049,0.9948665,2572.8,2572.4,0.1936]
[1750044179728,1.73989439,2572.8,2572.4,0.1936]
[1750044180270,1.54629439,2572.8,2572.1,10.0]
[1750044180566,0.1936,2572.6,2572.1,0.1936]
[1750044180772,0.8227,2572.5,2572.1,6.5536]
[1750044181706,0.8227,2572.5,2572.1,0.1936]
[1750044182486,0.8227,2572.5,2572.1,4.08139748]
[1750044182798,0.8227,2572.5,2572.1,0.1936]
[1750044184868,2.4644,2572.7,2572.2,0.79457485]
[1750044185070,2.4644,2572.7,2572.4,0.1936]
[1750044187396,0.1936,2572.8,2572.4,0.1936]
[1750044187561,0.2244665,2572.8,2572.4,0.1936]
[1750044190170,0.1936,2572.8,2572.4,0.1936]
[1750044190371,0.2244665,2572.8,2572.4,0.1936]
[1750044191279,0.1936,2572.8,2572.4,0.1936]
[1750044194308,0.1936,2572.8,2572.4,4.0809389]